[Event "XX Gran Hotel Bali-A 2023"]
[Site "Benidorm"]
[Date "2023.12.05"]
[Round "6.9"]
[White "Mitrabha, Guha"]
[Black "Ibanez Aullana, Ramon"]
[Result "1-0"]
[ECO "A30"]
[WhiteElo "2516"]
[BlackElo "2207"]
[Annotator "RC"]
[PlyCount "103"]
[EventDate "2023.12.02"]
[EventType "swiss"]
[EventCountry "ESP"]
[SourceTitle "playchess.com"]
[Source "ChessBase"]
[SourceQuality "1"]
[TimeControl "5400+30"]

1. Nf3 {[%emt 0:12:57]} Nf6 {[%emt 0:01:11]} 2. c4 {[%emt 0:00:17]} c5 {[%emt 0:05:15]} 3. g3 {[%emt 0:00:28]} b6 {[%emt 0:01:27]} 4. Bg2 {[%emt 0:00:23]} Bb7 {[%emt 0:00:10]} 5. O-O {[%emt 0:00:19]} g6 {[%emt 0:00:26]} 6. b3 {[%emt 0:01:41]} Bg7 {[%emt 0:00:32]} 7. Bb2 {[%emt 0:00:02]} O-O {[%emt 0:00:17]} 8. Nc3 {[%emt 0:00:34]} Ne4 {[%emt 0:10:28]} 9. Rc1 {[%emt 0:02:14]} d6 {[%emt 0:03:52]} 10. d4 {[%emt 0:00:56]} cxd4 {[%emt 0:01:39]} 11. Nxe4 {[%emt 0:00:10]} Bxe4 {[%emt 0:00:10]} 12. Bxd4 {[%emt 0:00:03]} e5 {[%emt 0:04:06]} 13. Bb2 {[%emt 0:00:34]} Na6 {[%emt 0:01:50]} 14. Qd2 {[%emt 0:00:35]} Qe7 {[%emt 0:03:15]} 15. Rfd1 {[%emt 0:01:24]} Rfd8 {[%emt 0:00:35]} 16. Ne1 {[%emt 0:00:23]} Bxg2 {[%emt 0:05:39]} 17. Nxg2 {[%emt 0:00:23]} Nc7 {[%emt 0:02:12]} 18. Ne3 {[%emt 0:02:04]} Qe6 {[%emt 0:02:45]} 19. Nd5 {[%emt 0:00:40]} Rac8 {[%emt 0:01:10]} 20. Nb4 {[%emt 0:03:29]} Ne8 {[%emt 0:02:05]} 21. Qe3 {[%emt 0:02:21]} Nf6 {[%emt 0:04:32]} 22. Rc2 {[%emt 0:01:02]} Qh3 {[%emt 0:03:29]} 23. Qf3 {[%emt 0:00:22]} a5 {[%emt 0:03:03]} 24. Nd5 {[%emt 0:01:38]} Nxd5 {[%emt 0:00:15]} 25. Rxd5 {[%emt 0:00:25]} Rc5 {[%emt 0:42:37]} 26. a4 {[%emt 0:00:33]} Qe6 {[%emt 0:00:00]} 27. e4 {[%emt 0:05:38]} h5 {[%emt 0:00:00]} 28. Ba3 {[%emt 0:01:34]} Rc6 {[%emt 0:00:00]} 29. h4 {[%emt 0:00:56]} Bf8 {[%emt 0:00:00]} 30. Rcd2 {[%emt 0:00:20]} Be7 {[%emt 0:00:00]} 31. Kg2 {[%emt 0:00:39]} Qg4 {[%emt 0:00:00]} 32. Qd3 {[%emt 0:05:19]} f5 {[%emt 0:00:00]} 33. exf5 {[%emt 0:00:56]} gxf5 {[%emt 0:00:00]} 34. Rb5 {[%emt 0:00:38]} Qe4+ {[%emt 0:03:24]} 35. Qxe4 {[%emt 0:00:12]} fxe4 {[%emt 0:00:01]} 36. Re2 {[%emt 0:00:08]} Kf7 {[%emt 0:00:59]} 37. Rxe4 {[%emt 0:00:03]} Rg8 {[%emt 0:00:45]} 38. Kf1 {[%emt 0:00:37]} Rcc8 {[%emt 0:00:46]} 39. Re1 {[%emt 0:00:42]} Rb8 {[%emt 0:00:20]} 40. Bc1 {[%emt 0:00:39]} Bd8 {[%emt 0:00:23]} 41. Rd1 {[%emt 0:00:20]} Ke6 {[%emt 0:00:26]} 42. Rbd5 {[%emt 0:00:13]} Bc7 {[%emt 0:00:21]} 43. Bg5 {[%emt 0:57:09]} Rbf8 {[%emt 0:00:31]} 44. Ke2 {[%emt 0:00:00]} Rf5 {[%emt 0:00:20]} 45. Be3 {[%emt 0:00:00]} Rgf8 {[%emt 0:00:22]} 46. Kf1 {[%emt 0:00:00]} Rf3 {[%emt 0:01:15]} 47. Kg2 {[%emt 0:00:00]} R3f7 {[%emt 0:00:01]} 48. Kh3 {[%emt 0:00:00]} Rf3 {[%emt 0:00:57]} 49. R1d2 {[%emt 0:00:00]} Ke7 {[%emt 0:00:29]} 50. Kg2 {[%emt 0:00:00]} Ke6 {[%emt 0:00:24]} 51. Bxb6 {[%emt 0:00:00]} Bb8 {[%emt 0:00:44]} 52. Rb5 {[%emt 0:00:00]} 1-0

[Event "XX Gran Hotel Bali-A 2023"]
[Site "Benidorm"]
[Date "2023.12.05"]
[Round "6.10"]
[White "Solodovnichenko, Yuri"]
[Black "Roulet-Dubonnet, Emerik Vapenstad"]
[Result "1-0"]
[ECO "B12"]
[WhiteElo "2490"]
[BlackElo "2170"]
[Annotator "RC"]
[PlyCount "101"]
[EventDate "2023.12.02"]
[EventType "swiss"]
[EventCountry "ESP"]
[SourceTitle "playchess.com"]
[Source "ChessBase"]
[SourceQuality "1"]
[TimeControl "5400+30"]

1. e4 {[%emt 0:00:02]} c6 {[%emt 0:03:50]} 2. d4 {[%emt 1:31:28]} d5 {[%emt 0:00:16]} 3. e5 {[%emt 0:00:00]} Bf5 {[%emt 0:00:45]} 4. Nd2 {[%emt 0:00:00]} e6 {[%emt 0:02:06]} 5. Nb3 {[%emt 0:00:00]} Nd7 {[%emt 0:00:12]} 6. Nf3 {[%emt 0:00:00]} a6 {[%emt 0:05:00]} 7. Be3 {[%emt 0:00:00]} Rc8 {[%emt 0:02:25]} 8. Be2 {[%emt 0:00:00]} c5 {[%emt 0:01:43]} 9. dxc5 {[%emt 0:00:00]} Bxc5 {[%emt 0:01:08]} 10. Nfd4 {[%emt 0:00:00]} Be4 {[%emt 0:02:48]} 11. Nxc5 {[%emt 0:00:00]} Nxc5 {[%emt 0:00:32]} 12. O-O {[%emt 0:00:00]} Ne7 {[%emt 0:01:38]} 13. a4 {[%emt 0:00:00]} O-O {[%emt 0:04:10]} 14. a5 {[%emt 0:00:00]} Nf5 {[%emt 0:04:06]} 15. Nxf5 {[%emt 0:00:00]} Bxf5 {[%emt 0:00:10]} 16. Bd4 {[%emt 0:00:00]} Qh4 {[%emt 0:09:59]} 17. c3 {[%emt 0:00:00]} Rc7 {[%emt 0:04:43]} 18. Rc1 {[%emt 0:00:00]} Rfc8 {[%emt 0:02:17]} 19. f3 {[%emt 0:00:00]} Bg6 {[%emt 0:05:29]} 20. Re1 {[%emt 0:00:00]} h6 {[%emt 0:02:31]} 21. Bf1 {[%emt 0:00:00]} Qg5 {[%emt 0:02:06]} 22. g3 {[%emt 0:00:00]} Bh5 {[%emt 0:04:27]} 23. Rc2 {[%emt 0:00:00]} Nb3 {[%emt 0:02:55]} 24. Bb6 {[%emt 0:00:00]} Rc6 {[%emt 0:00:12]} 25. Rg2 {[%emt 0:00:00]} Nc5 {[%emt 0:02:11]} 26. h4 {[%emt 0:00:00]} Qe7 {[%emt 0:01:05]} 27. g4 {[%emt 0:00:00]} Bg6 {[%emt 0:00:41]} 28. h5 {[%emt 0:00:00]} Bh7 {[%emt 0:00:27]} 29. Qd2 {[%emt 0:00:00]} Qh4 {[%emt 0:09:40]} 30. Rd1 {[%emt 0:00:00]} Kh8 {[%emt 0:03:32]} 31. Qf4 {[%emt 0:00:00]} Qg5 {[%emt 0:04:59]} 32. Qxf7 {[%emt 0:06:43]} Bg8 {[%emt 0:01:55]} 33. Qg6 {[%emt 0:00:57]} Qe3+ {[%emt 0:01:13]} 34. Rf2 {[%emt 0:00:01]} Rf8 {[%emt 0:01:15]} 35. Qc2 {[%emt 0:02:20]} Rxf3 {[%emt 0:00:40]} 36. Qe2 {[%emt 0:01:04]} Qxf2+ {[%emt 0:03:04]} 37. Qxf2 {[%emt 0:00:02]} Rxf2 {[%emt 0:00:09]} 38. Kxf2 {[%emt 0:00:03]} Bh7 {[%emt 0:00:36]} 39. c4 {[%emt 0:02:48]} Bc2 {[%emt 0:02:09]} 40. Rd4 {[%emt 0:01:58]} Nd7 {[%emt 0:02:29]} 41. cxd5 {[%emt 0:00:51]} exd5 {[%emt 0:00:01]} 42. Rxd5 {[%emt 0:00:37]} Nxb6 {[%emt 0:00:11]} 43. axb6 {[%emt 0:00:17]} Rxb6 {[%emt 0:00:48]} 44. Rd8+ {[%emt 0:00:37]} Kh7 {[%emt 0:00:01]} 45. Bc4 {[%emt 0:00:15]} g6 {[%emt 0:03:23]} 46. e6 {[%emt 0:01:34]} Rxb2 {[%emt 0:01:39]} 47. Rd2 {[%emt 0:00:27]} gxh5 {[%emt 0:01:49]} 48. e7 {[%emt 0:00:12]} hxg4 {[%emt 0:00:04]} 49. e8=Q {[%emt 0:00:12]} g3+ {[%emt 0:00:05]} 50. Kxg3 {[%emt 0:00:06]} Bd3 {[%emt 0:00:11]} 51. Qg8# {[%emt 0:00:07]} 1-0

[Event "XX Gran Hotel Bali-A 2023"]
[Site "Benidorm"]
[Date "2023.12.05"]
[Round "6.11"]
[White "Decuigniere, Tom"]
[Black "Ambartsumian, Tyhran"]
[Result "0-1"]
[ECO "E92"]
[WhiteElo "2408"]
[BlackElo "2138"]
[Annotator "RC"]
[PlyCount "124"]
[EventDate "2023.12.02"]
[EventType "swiss"]
[EventCountry "ESP"]
[SourceTitle "playchess.com"]
[Source "ChessBase"]
[SourceQuality "1"]
[TimeControl "5400+30"]

1. d4 {[%emt 0:00:02]} Nf6 {[%emt 0:00:20]} 2. c4 {[%emt 0:00:07]} g6 {[%emt 0:00:04]} 3. Nc3 {[%emt 0:00:08]} Bg7 {[%emt 0:00:08]} 4. e4 {[%emt 0:00:05]} d6 {[%emt 0:00:05]} 5. h3 {[%emt 0:00:07]} O-O {[%emt 0:04:20]} 6. Be3 {[%emt 0:00:03]} e5 {[%emt 0:04:07]} 7. d5 {[%emt 0:00:07]} Nbd7 {[%emt 0:04:14]} 8. Nf3 {[%emt 0:00:10]} a5 {[%emt 0:00:56]} 9. g4 {[%emt 0:01:51]} Nc5 {[%emt 0:15:41]} 10. Nd2 {[%emt 0:00:08]} c6 {[%emt 0:15:19]} 11. Be2 {[%emt 0:01:03]} Bd7 {[%emt 0:01:51]} 12. h4 {[%emt 0:03:13]} cxd5 {[%emt 0:13:54]} 13. cxd5 {[%emt 0:00:06]} b5 {[%emt 0:01:05]} 14. g5 {[%emt 0:07:07]} Nh5 {[%emt 0:04:17]} 15. Bxc5 {[%emt 0:03:19]} dxc5 {[%emt 0:00:10]} 16. Bxh5 {[%emt 0:00:12]} gxh5 {[%emt 0:00:08]} 17. Qxh5 {[%emt 0:08:38]} f5 {[%emt 0:11:02]} 18. Rg1 {[%emt 0:05:56]} b4 {[%emt 0:09:21]} 19. Ne2 {[%emt 0:00:28]} Be8 {[%emt 0:00:34]} 20. Qf3 {[%emt 0:00:47]} fxe4 {[%emt 0:00:11]} 21. Qe3 {[%emt 0:25:41]} Qxd5 {[%emt 0:01:48]} 22. Nxe4 {[%emt 0:00:52]} Kh8 {[%emt 0:03:13]} 23. N2g3 {[%emt 0:04:10]} Qd4 {[%emt 0:01:44]} 24. h5 {[%emt 0:13:29]} Qxe3+ {[%emt 0:01:43]} 25. fxe3 {[%emt 0:00:04]} h6 {[%emt 0:01:49]} 26. g6 {[%emt 0:00:28]} Bd7 {[%emt 0:00:50]} 27. Nd6 {[%emt 0:05:35]} Be6 {[%emt 0:00:38]} 28. e4 {[%emt 0:00:59]} Rf4 {[%emt 0:00:53]} 29. O-O-O {[%emt 0:02:52]} Raf8 {[%emt 0:02:05]} 30. Ngf5 {[%emt 0:01:09]} a4 {[%emt 0:00:40]} 31. Rg3 {[%emt 0:04:59]} c4 {[%emt 0:00:23]} 32. Rdg1 {[%emt 0:02:47]} Kg8 {[%emt 0:01:22]} 33. a3 {[%emt 0:03:37]} b3 {[%emt 0:02:05]} 34. Rc3 {[%emt 0:01:34]} Rf2 {[%emt 0:00:00]} 35. Rd1 {[%emt 0:02:04]} Rh2 {[%emt 0:00:02]} 36. Rf3 {[%emt 0:01:44]} Rxh5 {[%emt 0:00:49]} 37. Ne7+ {[%emt 0:01:07]} Kh8 {[%emt 0:00:03]} 38. Rdf1 {[%emt 0:01:28]} Rf4 {[%emt 0:00:18]} 39. Nf7+ {[%emt 0:00:33]} Bxf7 {[%emt 0:00:07]} 40. gxf7 {[%emt 0:00:01]} Rxf3 {[%emt 0:00:40]} 41. Rxf3 {[%emt 0:00:06]} Rh1+ {[%emt 0:00:22]} 42. Kd2 {[%emt 0:00:02]} Rh2+ {[%emt 0:00:11]} 43. Kd1 {[%emt 0:02:07]} Rxb2 {[%emt 0:01:02]} 44. f8=Q+ {[%emt 0:01:25]} Bxf8 {[%emt 0:00:05]} 45. Rxf8+ {[%emt 0:00:00]} Kg7 {[%emt 0:00:17]} 46. Rc8 {[%emt 0:00:25]} Ra2 {[%emt 0:01:11]} 47. Nd5 {[%emt 0:00:21]} Ra1+ {[%emt 0:00:13]} 48. Kd2 {[%emt 0:00:05]} b2 {[%emt 0:00:03]} 49. Nc3 {[%emt 0:00:05]} Rxa3 {[%emt 0:00:52]} 50. Nb1 {[%emt 0:01:04]} Ra1 {[%emt 0:00:39]} 51. Kc2 {[%emt 0:00:05]} a3 {[%emt 0:00:03]} 52. Nxa3 {[%emt 0:00:19]} Rxa3 {[%emt 0:00:05]} 53. Rxc4 {[%emt 0:00:04]} Rb3 {[%emt 0:01:34]} 54. Kb1 {[%emt 0:00:17]} h5 {[%emt 0:00:28]} 55. Rc7+ {[%emt 0:00:44]} Kg6 {[%emt 0:00:47]} 56. Rc5 {[%emt 0:00:34]} Kf6 {[%emt 0:00:24]} 57. Rc8 {[%emt 0:00:03]} h4 {[%emt 0:00:13]} 58. Rf8+ {[%emt 0:00:14]} Kg5 {[%emt 0:00:31]} 59. Rf5+ {[%emt 0:00:09]} Kg4 {[%emt 0:00:01]} 60. Rxe5 {[%emt 0:00:07]} h3 {[%emt 0:00:04]} 61. Re8 {[%emt 0:00:38]} h2 {[%emt 0:00:05]} 62. Rg8+ {[%emt 0:00:24]} Kf3 {[%emt 0:00:10]} 0-1

[Event "XX Gran Hotel Bali-A 2023"]
[Site "Benidorm"]
[Date "2023.12.05"]
[Round "6.12"]
[White "Garijo Perez, Hugo"]
[Black "Gomez Dieguez, David"]
[Result "1-0"]
[ECO "C78"]
[WhiteElo "2222"]
[BlackElo "2303"]
[Annotator "RC"]
[PlyCount "77"]
[EventDate "2023.12.02"]
[EventType "swiss"]
[EventCountry "ESP"]
[SourceTitle "playchess.com"]
[Source "ChessBase"]
[SourceQuality "1"]
[TimeControl "5400+30"]

1. e4 {[%emt 0:00:02]} e5 {[%emt 0:00:11]} 2. Nf3 {[%emt 0:00:05]} Nc6 {[%emt 0:00:01]} 3. Bb5 {[%emt 0:00:05]} a6 {[%emt 0:00:02]} 4. Ba4 {[%emt 0:00:05]} Nf6 {[%emt 0:00:03]} 5. O-O {[%emt 0:00:06]} Bc5 {[%emt 0:00:14]} 6. d3 {[%emt 0:03:47]} b5 {[%emt 0:03:27]} 7. Bb3 {[%emt 0:00:05]} d6 {[%emt 0:00:01]} 8. a4 {[%emt 0:01:17]} Na5 {[%emt 0:00:06]} 9. Ba2 {[%emt 0:01:03]} bxa4 {[%emt 0:17:21]} 10. Bd2 {[%emt 0:05:08]} Nc6 {[%emt 0:13:40]} 11. Nc3 {[%emt 0:01:41]} a3 {[%emt 0:00:28]} 12. bxa3 {[%emt 0:00:50]} Bg4 {[%emt 0:06:18]} 13. h3 {[%emt 0:00:51]} Bh5 {[%emt 0:00:24]} 14. Nd5 {[%emt 0:02:01]} Nd4 {[%emt 0:13:35]} 15. g4 {[%emt 0:24:24]} Nxg4 {[%emt 0:00:22]} 16. c3 {[%emt 0:00:14]} Nxf2 {[%emt 0:17:14]} 17. Qa4+ {[%emt 0:03:53]} Nb5 {[%emt 0:00:48]} 18. Rxf2 {[%emt 0:00:32]} Bxf2+ {[%emt 0:02:33]} 19. Kxf2 {[%emt 0:00:07]} Qd7 {[%emt 0:01:01]} 20. Qd1 {[%emt 0:03:12]} f5 {[%emt 0:06:21]} 21. exf5 {[%emt 0:05:25]} Qxf5 {[%emt 0:00:22]} 22. Ne3 {[%emt 0:00:57]} Qxh3 {[%emt 0:03:27]} 23. Bd5 {[%emt 0:02:34]} Bxf3 {[%emt 0:03:16]} 24. Qxf3 {[%emt 0:01:31]} Rf8 {[%emt 0:02:14]} 25. Bxa8 {[%emt 0:01:32]} Qh4+ {[%emt 0:00:39]} 26. Ke2 {[%emt 0:00:29]} Rxf3 {[%emt 0:00:01]} 27. Bxf3 {[%emt 0:00:08]} Qe7 {[%emt 0:03:56]} 28. Bc6+ {[%emt 0:04:04]} Kf8 {[%emt 0:01:27]} 29. Rf1+ {[%emt 0:01:29]} Kg8 {[%emt 0:00:01]} 30. Bd5+ {[%emt 0:00:00]} Kh8 {[%emt 0:00:01]} 31. Rf7 {[%emt 0:00:52]} Qe8 {[%emt 0:00:11]} 32. Nf5 {[%emt 0:03:31]} c6 {[%emt 0:00:06]} 33. Nxg7 {[%emt 0:00:40]} Qc8 {[%emt 0:03:29]} 34. Be6 {[%emt 0:00:39]} Qd8 {[%emt 0:00:12]} 35. Nf5 {[%emt 0:00:36]} h5 {[%emt 0:00:49]} 36. Bh6 {[%emt 0:00:58]} Nxc3+ {[%emt 0:00:11]} 37. Kf3 {[%emt 0:01:10]} Qa5 {[%emt 0:02:19]} 38. Bg7+ {[%emt 0:00:26]} Kh7 {[%emt 0:00:14]} 39. Bxe5+ {[%emt 0:00:06]} 1-0

[Event "XX Gran Hotel Bali-A 2023"]
[Site "Benidorm"]
[Date "2023.12.05"]
[Round "6.13"]
[White "Utsab Chatterjee"]
[Black "Odriozola Coscolin, Dani"]
[Result "1-0"]
[ECO "B38"]
[WhiteElo "2302"]
[BlackElo "1874"]
[Annotator "RC"]
[PlyCount "61"]
[EventDate "2023.12.02"]
[EventType "swiss"]
[EventCountry "ESP"]
[SourceTitle "playchess.com"]
[Source "ChessBase"]
[SourceQuality "1"]
[TimeControl "5400+30"]

1. e4 {[%emt 0:01:27]} c5 {[%emt 0:00:04]} 2. Nf3 {[%emt 0:00:32]} Nc6 {[%emt 0:00:15]} 3. d4 {[%emt 0:00:40]} cxd4 {[%emt 0:00:09]} 4. Nxd4 {[%emt 0:00:08]} g6 {[%emt 0:00:12]} 5. c4 {[%emt 0:00:18]} Bg7 {[%emt 0:01:10]} 6. Be3 {[%emt 0:00:13]} Nf6 {[%emt 0:00:42]} 7. Nc3 {[%emt 0:00:07]} d6 {[%emt 0:01:26]} 8. Be2 {[%emt 0:00:12]} O-O {[%emt 0:00:06]} 9. O-O {[%emt 0:00:04]} Bd7 {[%emt 0:00:13]} 10. h3 {[%emt 0:00:11]} Nxd4 {[%emt 0:00:25]} 11. Bxd4 {[%emt 0:00:16]} Bc6 {[%emt 0:00:06]} 12. Qc2 {[%emt 0:00:17]} a5 {[%emt 0:01:18]} 13. b3 {[%emt 0:00:15]} Nd7 {[%emt 0:00:59]} 14. Bxg7 {[%emt 0:00:18]} Kxg7 {[%emt 0:00:08]} 15. Rfd1 {[%emt 0:00:26]} Qb6 {[%emt 0:06:00]} 16. a3 {[%emt 0:00:29]} Nc5 {[%emt 0:05:46]} 17. Rab1 {[%emt 0:00:10]} Rfc8 {[%emt 0:01:52]} 18. b4 {[%emt 0:05:55]} axb4 {[%emt 0:00:25]} 19. axb4 {[%emt 0:00:02]} Ne6 {[%emt 0:11:08]} 20. Qb2 {[%emt 0:00:16]} Kg8 {[%emt 0:01:02]} 21. c5 {[%emt 0:07:03]} Qd8 {[%emt 0:35:14]} 22. cxd6 {[%emt 0:05:18]} exd6 {[%emt 0:00:16]} 23. b5 {[%emt 0:00:04]} Be8 {[%emt 0:00:21]} 24. Nd5 {[%emt 0:00:13]} Ng7 {[%emt 0:00:34]} 25. Nf6+ {[%emt 0:02:13]} Kh8 {[%emt 0:00:56]} 26. e5 {[%emt 0:00:09]} d5 {[%emt 0:01:13]} 27. Rxd5 {[%emt 0:01:12]} Qe7 {[%emt 0:01:58]} 28. Qd2 {[%emt 0:00:17]} Ne6 {[%emt 0:02:47]} 29. Qh6 {[%emt 0:00:21]} Nf8 {[%emt 0:00:15]} 30. Rd4 {[%emt 0:00:31]} g5 {[%emt 0:06:02]} 31. Qxg5 {[%emt 0:00:09]} 1-0

[Event "XX Gran Hotel Bali-A 2023"]
[Site "Benidorm"]
[Date "2023.12.05"]
[Round "6.14"]
[White "Grabuzova, Tatiana"]
[Black "Moreno Estebanez, Patxi"]
[Result "1-0"]
[ECO "E11"]
[WhiteElo "2202"]
[BlackElo "2278"]
[Annotator "RC"]
[PlyCount "85"]
[EventDate "2023.12.02"]
[EventType "swiss"]
[EventCountry "ESP"]
[SourceTitle "playchess.com"]
[Source "ChessBase"]
[SourceQuality "1"]
[TimeControl "5400+30"]

1. d4 {[%emt 0:00:09]} Nf6 {[%emt 0:00:50]} 2. c4 {[%emt 0:00:16]} e6 {[%emt 0:00:37]} 3. g3 {[%emt 0:00:30]} Bb4+ {[%emt 0:00:37]} 4. Bd2 {[%emt 0:00:18]} Qe7 {[%emt 0:00:52]} 5. Bg2 {[%emt 0:00:45]} Bxd2+ {[%emt 0:01:52]} 6. Qxd2 {[%emt 0:01:11]} d6 {[%emt 0:00:44]} 7. Nc3 {[%emt 0:02:52]} O-O {[%emt 0:00:22]} 8. Nf3 {[%emt 0:00:55]} c6 {[%emt 0:01:33]} 9. Rd1 {[%emt 0:01:37]} Nbd7 {[%emt 0:04:27]} 10. O-O {[%emt 0:00:45]} Re8 {[%emt 0:04:23]} 11. b4 {[%emt 0:23:00]} d5 {[%emt 0:19:50]} 12. c5 {[%emt 0:06:29]} e5 {[%emt 0:02:18]} 13. Nh4 {[%emt 0:15:03]} g6 {[%emt 0:20:55]} 14. f4 {[%emt 0:02:22]} exd4 {[%emt 0:01:48]} 15. Qxd4 {[%emt 0:00:06]} Qe3+ {[%emt 0:01:00]} 16. Qxe3 {[%emt 0:03:46]} Rxe3 {[%emt 0:00:04]} 17. Rf3 {[%emt 0:00:06]} Rxf3 {[%emt 0:04:14]} 18. Nxf3 {[%emt 0:00:15]} a5 {[%emt 0:00:04]} 19. b5 {[%emt 0:00:37]} Nxc5 {[%emt 0:00:55]} 20. Ne5 {[%emt 0:02:02]} Bg4 {[%emt 0:09:13]} 21. bxc6 {[%emt 0:01:52]} bxc6 {[%emt 0:00:04]} 22. Nxc6 {[%emt 0:00:27]} Kg7 {[%emt 0:04:11]} 23. Bxd5 {[%emt 0:08:43]} Nxd5 {[%emt 0:03:00]} 24. Rxd5 {[%emt 0:00:07]} Nb7 {[%emt 0:00:11]} 25. Rb5 {[%emt 0:05:00]} Rc8 {[%emt 0:01:28]} 26. Rxb7 {[%emt 0:00:42]} Rxc6 {[%emt 0:00:11]} 27. Rb3 {[%emt 0:00:05]} Kf6 {[%emt 0:07:58]} 28. Kf2 {[%emt 0:03:15]} Ke7 {[%emt 0:01:39]} 29. e4 {[%emt 0:02:03]} Be6 {[%emt 0:00:29]} 30. Ra3 {[%emt 0:01:24]} Kd6 {[%emt 0:00:40]} 31. Ke3 {[%emt 0:01:15]} Kc5 {[%emt 0:00:13]} 32. Nd5 {[%emt 0:01:02]} Kb5 {[%emt 0:03:34]} 33. Kd4 {[%emt 0:04:13]} Rc2 {[%emt 0:00:50]} 34. h4 {[%emt 0:06:05]} h5 {[%emt 0:00:26]} 35. Rb3+ {[%emt 0:00:44]} Ka6 {[%emt 0:00:23]} 36. a3 {[%emt 0:00:46]} Rc1 {[%emt 0:01:25]} 37. Ke5 {[%emt 0:02:07]} Rc4 {[%emt 0:00:15]} 38. f5 {[%emt 0:04:21]} gxf5 {[%emt 0:00:09]} 39. exf5 {[%emt 0:00:04]} Bc8 {[%emt 0:00:42]} 40. Rc3 {[%emt 0:00:50]} Rxc3 {[%emt 0:00:17]} 41. Nxc3 {[%emt 0:00:05]} Kb6 {[%emt 0:00:07]} 42. Ne4 {[%emt 0:00:29]} Kc6 {[%emt 0:00:53]} 43. Ng5 {[%emt 0:03:17]} 1-0

[Event "XX Gran Hotel Bali-A 2023"]
[Site "Benidorm"]
[Date "2023.12.05"]
[Round "6.15"]
[White "Granero Roca, Antonio"]
[Black "Donate Moreno, Silvia"]
[Result "1-0"]
[ECO "D24"]
[WhiteElo "2273"]
[BlackElo "2156"]
[Annotator "RC"]
[PlyCount "63"]
[EventDate "2023.12.02"]
[EventType "swiss"]
[EventCountry "ESP"]
[SourceTitle "playchess.com"]
[Source "ChessBase"]
[SourceQuality "1"]
[TimeControl "5400+30"]

1. Nf3 {[%emt 0:00:07]} Nf6 {[%emt 0:00:08]} 2. c4 {[%emt 0:00:37]} e6 {[%emt 0:00:15]} 3. d4 {[%emt 0:00:45]} d5 {[%emt 0:00:09]} 4. Nc3 {[%emt 0:00:40]} a6 {[%emt 0:00:13]} 5. Bg5 {[%emt 0:04:32]} dxc4 {[%emt 0:00:31]} 6. a4 {[%emt 0:00:24]} Nc6 {[%emt 0:01:13]} 7. e4 {[%emt 0:01:25]} Na5 {[%emt 0:00:46]} 8. Qc2 {[%emt 0:03:33]} h6 {[%emt 0:02:17]} 9. Bh4 {[%emt 0:00:59]} Be7 {[%emt 0:06:03]} 10. Be2 {[%emt 0:01:08]} O-O {[%emt 0:05:31]} 11. Rd1 {[%emt 0:02:32]} Bd7 {[%emt 0:02:54]} 12. d5 {[%emt 0:05:22]} exd5 {[%emt 0:08:21]} 13. e5 {[%emt 0:04:11]} Ng4 {[%emt 0:03:14]} 14. Bxe7 {[%emt 0:00:49]} Qxe7 {[%emt 0:00:11]} 15. Nxd5 {[%emt 0:02:06]} Qc5 {[%emt 0:00:24]} 16. O-O {[%emt 0:00:27]} Nc6 {[%emt 0:12:10]} 17. b4 {[%emt 0:06:42]} Qa7 {[%emt 0:09:26]} 18. Ne7+ {[%emt 0:03:42]} Nxe7 {[%emt 0:00:15]} 19. Rxd7 {[%emt 0:00:08]} Ng6 {[%emt 0:07:18]} 20. Qf5 {[%emt 0:02:02]} Ne3 {[%emt 0:04:25]} 21. fxe3 {[%emt 0:00:36]} Qxe3+ {[%emt 0:00:07]} 22. Rf2 {[%emt 0:00:18]} Rae8 {[%emt 0:02:43]} 23. Bxc4 {[%emt 0:04:20]} Qc1+ {[%emt 0:06:26]} 24. Bf1 {[%emt 0:00:58]} b5 {[%emt 0:04:32]} 25. axb5 {[%emt 0:01:18]} axb5 {[%emt 0:00:08]} 26. Qc2 {[%emt 0:03:02]} Qe3 {[%emt 0:04:32]} 27. Qc5 {[%emt 0:00:18]} Qxc5 {[%emt 0:00:47]} 28. bxc5 {[%emt 0:00:10]} c6 {[%emt 0:00:36]} 29. Rd6 {[%emt 0:00:30]} Rc8 {[%emt 0:01:18]} 30. Bd3 {[%emt 0:00:17]} Nf4 {[%emt 0:00:24]} 31. Be4 {[%emt 0:00:27]} Ne6 {[%emt 0:00:53]} 32. Bf5 {[%emt 0:00:38]} 1-0

[Event "XX Gran Hotel Bali-A 2023"]
[Site "Benidorm"]
[Date "2023.12.05"]
[Round "6.16"]
[White "Midoux, Sebastien"]
[Black "Escartin Lacasa, Jose"]
[Result "0-1"]
[ECO "E09"]
[WhiteElo "2151"]
[BlackElo "2272"]
[Annotator "RC"]
[PlyCount "72"]
[EventDate "2023.12.02"]
[EventType "swiss"]
[EventCountry "ESP"]
[SourceTitle "playchess.com"]
[Source "ChessBase"]
[SourceQuality "1"]
[TimeControl "5400+30"]

1. d4 {[%emt 0:00:04]} d5 {[%emt 0:00:12]} 2. c4 {[%emt 0:00:20]} c6 {[%emt 0:00:02]} 3. Nf3 {[%emt 0:00:18]} Nf6 {[%emt 0:00:12]} 4. Nbd2 {[%emt 0:00:50]} e6 {[%emt 0:00:54]} 5. g3 {[%emt 0:01:01]} Be7 {[%emt 0:09:31]} 6. Bg2 {[%emt 0:00:40]} O-O {[%emt 0:00:18]} 7. O-O {[%emt 0:00:21]} Nbd7 {[%emt 0:00:24]} 8. Qc2 {[%emt 0:01:13]} b6 {[%emt 0:01:49]} 9. e4 {[%emt 0:02:00]} Bb7 {[%emt 0:01:03]} 10. e5 {[%emt 0:05:05]} Ne8 {[%emt 0:00:31]} 11. b3 {[%emt 0:01:33]} Rc8 {[%emt 0:04:50]} 12. Bb2 {[%emt 0:00:49]} c5 {[%emt 0:03:52]} 13. Rac1 {[%emt 0:20:39]} Rc7 {[%emt 0:05:19]} 14. Rfe1 {[%emt 0:24:54]} Qa8 {[%emt 0:01:47]} 15. Qb1 {[%emt 0:11:41]} Rc8 {[%emt 0:05:45]} 16. cxd5 {[%emt 0:01:00]} Bxd5 {[%emt 0:00:13]} 17. Ne4 {[%emt 0:00:29]} h6 {[%emt 0:09:12]} 18. h4 {[%emt 0:03:40]} cxd4 {[%emt 0:01:30]} 19. Rxc8 {[%emt 0:00:59]} Qxc8 {[%emt 0:00:01]} 20. Bxd4 {[%emt 0:00:20]} Qb7 {[%emt 0:01:59]} 21. Re3 {[%emt 0:04:34]} a5 {[%emt 0:04:41]} 22. h5 {[%emt 0:00:44]} Nc5 {[%emt 0:01:12]} 23. Bxc5 {[%emt 0:02:26]} bxc5 {[%emt 0:00:50]} 24. Qc2 {[%emt 0:00:22]} Nc7 {[%emt 0:00:58]} 25. Bf1 {[%emt 0:02:35]} Rc8 {[%emt 0:08:30]} 26. Nfd2 {[%emt 0:00:12]} Nb5 {[%emt 0:03:00]} 27. Bxb5 {[%emt 0:00:44]} Qxb5 {[%emt 0:00:04]} 28. Nc4 {[%emt 0:00:27]} Rd8 {[%emt 0:03:20]} 29. Rf3 {[%emt 0:09:47]} a4 {[%emt 0:02:19]} 30. Rf4 {[%emt 0:00:03]} axb3 {[%emt 0:01:00]} 31. axb3 {[%emt 0:00:01]} Rb8 {[%emt 0:01:19]} 32. Ncd2 {[%emt 0:03:41]} Qe2 {[%emt 0:01:20]} 33. Qc1 {[%emt 0:00:42]} Qxh5 {[%emt 0:01:06]} 34. g4 {[%emt 0:01:11]} Qxe5 {[%emt 0:00:58]} 35. Nf3 {[%emt 0:00:04]} Qc7 {[%emt 0:00:06]} 36. g5 {[%emt 0:00:19]} Rxb3 {[%emt 0:02:24]} 0-1